fUST/lending_fUST_20250809
["ID","MTS","AMOUNT","RATE_DAILY","PERIOD"]
[378061434,1754713858415,-460.0,0.00023561,2]
[378061435,1754713858425,-460.0,0.00023561,2]
[378061436,1754713858434,-480.28,0.00023561,2]
[378061437,1754713858443,-460.0,0.00023561,2]
[378061438,1754713858453,-460.0,0.00023561,2]
[378061439,1754713858462,-151.0,0.00023561,7]
[378061440,1754713858472,-460.0,0.00023561,2]
[378061441,1754713858481,-460.0,0.00023561,2]
[378061442,1754713858490,-223.92490209,0.00023561,2]
[378061443,1754713858500,-711.13,0.00023561,2]
[378061444,1754713858509,-460.0,0.00023561,2]
[378061445,1754713858518,-460.0,0.00023561,2]
[378061446,1754713858527,-1177.39,0.00023561,2]
[378061447,1754713858539,-460.0,0.00023561,2]
[378061448,1754713858548,-460.0,0.00023561,2]
[378061449,1754713858557,-460.0,0.00023561,2]
[378061450,1754713858567,-1450.18,0.00023561,2]
[378061451,1754713858576,-460.0,0.00023561,2]
[378061452,1754713858585,-460.0,0.00023561,2]
[378061453,1754713858595,-460.0,0.00023561,2]
[378061454,1754713858604,-411.20528354,0.00023561,2]
[378061455,1754713858613,-460.0,0.00023561,2]
[378061456,1754713858623,-460.0,0.00023561,2]
[378061457,1754713858633,-460.0,0.00023561,2]
[378061458,1754713858642,-490.17582449,0.00023561,2]
[378061459,1754713858651,-791.54,0.00023561,2]
[378061460,1754713858661,-460.0,0.00023561,2]
[378061461,1754713858670,-1145.59,0.00023561,2]
[378061462,1754713858680,-1774.2,0.00023561,2]
[378061463,1754713858689,-2001.94,0.00023561,2]
[378061464,1754713858699,-248.20394,0.00023561,7]
[378061465,1754713858708,-248.20394,0.00023561,7]
[378061466,1754713858717,-573.41,0.00023561,2]
[378061467,1754713858727,-460.0,0.00023561,2]
[378061468,1754713858737,-236.5627385,0.00023561,2]
[378061469,1754713858746,-460.0,0.00023561,2]
[378061470,1754713858755,-460.0,0.00023561,2]
[378061471,1754713858764,-460.0,0.00023561,2]
[378061472,1754713858774,-460.0,0.00023561,2]
[378061473,1754713858785,-460.0,0.00023561,2]
[378061474,1754713858805,-548.41,0.00023561,2]
[378061475,1754713858823,-487.8,0.00023561,2]
[378061476,1754713858833,-460.0,0.00023561,2]
[378061477,1754713858844,-1615.05,0.00023561,2]
[378061478,1754713858854,-460.0,0.00023561,2]
[378061479,1754713858864,-460.0,0.00023561,2]
[378061480,1754713858876,-460.0,0.00023561,2]
[378061481,1754713858885,-535.71,0.00023561,2]
[378061482,1754713858897,-460.0,0.00023561,2]
[378061483,1754713858908,-460.0,0.00023561,2]
[378061484,1754713858924,-460.0,0.00023561,2]
[378061485,1754713858945,-460.0,0.00023561,2]
[378061486,1754713858965,-270.554229,0.00023561,7]
[378061487,1754713858981,-460.0,0.00023561,2]
[378061488,1754713858992,-460.0,0.00023561,2]
[378061489,1754713859002,-270.554229,0.00023561,7]
[378061490,1754713859012,-460.0,0.00023561,2]
[378061491,1754713859023,-460.0,0.00023561,2]
[378061492,1754713859033,-1082.16,0.00023561,2]
[378061493,1754713859042,-460.0,0.00023561,2]
[378061494,1754713859051,-460.0,0.00023561,2]
[378061495,1754713859061,-968.67,0.00023561,2]
[378061496,1754713859070,-460.0,0.00023561,2]
[378061497,1754713859079,-756.39,0.00023561,2]
[378061498,1754713859089,-844.58,0.00023561,2]
[378061499,1754713859098,-1070.24,0.00023561,2]
[378061500,1754713859108,-486.04,0.00023561,2]
[378061501,1754713859117,-1011.12,0.00023561,2]
[378061502,1754713859127,-460.0,0.00023561,2]
[378061503,1754713859137,-344.75791798,0.00023561,2]
[378061504,1754713859146,-460.0,0.00023561,2]
[378061505,1754713859155,-867.78,0.00023561,2]
[378061506,1754713859165,-1421.98,0.00023561,2]
[378061507,1754713859174,-460.0,0.00023561,2]
[378061508,1754713859188,-460.0,0.00023561,2]
[378061509,1754713859197,-574.66,0.00023561,2]
[378061510,1754713859221,-460.0,0.00023561,2]
[378061511,1754713859231,-151.0,0.00023561,7]
[378061512,1754713859240,-460.0,0.00023561,2]
[378061513,1754713859249,-3037.49,0.00023561,2]
[378061514,1754713859259,-719.99,0.00023561,2]
[378061515,1754713859268,-478.84,0.00023561,2]
[378061516,1754713859277,-497.89,0.00023561,2]
[378061517,1754713859287,-1371.05,0.00023561,2]
[378061518,1754713859296,-4921.9,0.00023561,2]
[378061519,1754713859305,-460.0,0.00023561,2]
[378061520,1754713859315,-460.0,0.00023561,2]
[378061521,1754713859324,-460.0,0.00023561,2]
[378061522,1754713859335,-681.73,0.00023561,2]
[378061523,1754713859344,-447.8360474,0.00023561,2]
[378061524,1754713859353,-460.0,0.00023561,2]
[378061525,1754713859362,-1076.66,0.00023561,2]
[378061526,1754713859372,-597.98,0.00023561,2]
[378061527,1754713859381,-460.0,0.00023561,2]
[378061528,1754713859391,-460.0,0.00023561,2]
[378061529,1754713859400,-250.46006549,0.00023568,2]
[378061530,1754713859410,-350.0,0.00023568,2]
[378061531,1754713859419,-1000.0,0.00023568,2]
[378061532,1754713859429,-151.0,0.00023594,7]
[378061533,1754713859438,-848.0,0.00023594,2]
[378061534,1754713859447,-360.0,0.00023596,2]
[378061535,1754713859456,-420.0,0.00023605,2]
[378061536,1754713859465,-2000.0,0.00023616,2]
[378061537,1754713859475,-450.0,0.00023616,2]
[378061538,1754713859484,-2000.0,0.00023616,2]
[378061539,1754713859493,-2400.0,0.00023616,2]
[378061540,1754713859503,-2000.0,0.00023616,2]
[378061541,1754713859512,-2000.0,0.00023616,2]
[378061542,1754713859522,-2000.0,0.00023616,2]
[378061543,1754713859531,-156.38657788,0.00023616,2]
[378061544,1754713859541,-752.95218013,0.00023616,2]
[378061545,1754713859551,-1413.00310154,0.00023616,2]
[378061546,1754713859561,-5000.0,0.00023684,2]
[378061547,1754713859570,-151.0,0.00023735,7]
[378061548,1754713859579,-848.0,0.00023747,2]
[378061549,1754713859589,-151.676585,0.000238,3]
[378061550,1754713859598,-168.0,0.00023801,2]
[378061551,1754713859607,-151.0,0.00023816,7]
[378061552,1754713859616,-151.0,0.00023835,7]
[378061553,1754713859626,-460.0,0.00023835,2]
[378061554,1754713859635,-460.0,0.00023835,2]
[378061555,1754713859646,-520.18,0.00023835,2]
[378061556,1754713859656,-638.99,0.00023835,2]
[378061557,1754713859666,-460.0,0.00023835,2]
[378061558,1754713859676,-460.0,0.00023835,2]
[378061559,1754713859685,-460.0,0.00023835,2]
[378061560,1754713859695,-460.0,0.00023835,2]
[378061561,1754713859704,-200.572991,0.00023835,7]
[378061562,1754713859713,-200.572991,0.00023835,7]
[378061563,1754713859722,-612.0,0.00023835,2]
[378061564,1754713859732,-460.0,0.00023835,2]
[378061565,1754713859742,-460.0,0.00023835,2]
[378061566,1754713859842,-460.0,0.00023835,2]
[378061567,1754713859865,-155.454767,0.00023835,7]
[378061568,1754713859875,-155.454767,0.00023835,7]
[378061569,1754713859885,-460.0,0.00023835,2]
[378061570,1754713859895,-460.0,0.00023835,2]
[378061571,1754713859904,-737.82641,0.00023835,7]
[378061572,1754713859914,-737.82641,0.00023835,7]
[378061573,1754713859924,-518.64,0.00023835,2]
[378061574,1754713859934,-460.0,0.00023835,2]
[378061575,1754713859944,-460.0,0.00023835,2]
[378061576,1754713859953,-460.0,0.00023835,2]
[378061577,1754713859962,-460.0,0.00023835,2]
[378061578,1754713859971,-460.0,0.00023835,2]
[378061579,1754713859981,-460.0,0.00023835,2]
[378061580,1754713859990,-460.0,0.00023835,2]
[378061581,1754713860001,-460.0,0.00023835,2]
[378061582,1754713860010,-460.0,0.00023835,2]
[378061583,1754713860020,-460.0,0.00023835,2]
[378061584,1754713860030,-480.28,0.00023835,2]
[378061585,1754713860040,-460.0,0.00023835,2]
[378061586,1754713860050,-460.0,0.00023835,2]
[378061587,1754713860061,-151.0,0.00023835,7]
[378061588,1754713860071,-167.89603516,0.00023835,2]
[378061589,1754713860080,-460.0,0.00023835,2]
[378061590,1754713860090,-711.13,0.00023835,2]
[378061591,1754713860099,-460.0,0.00023835,2]
[378061592,1754713860109,-219.92921328,0.00023835,2]
[378061593,1754713860118,-1177.39,0.00023835,2]
[378061594,1754713860127,-460.0,0.00023835,2]
[378061595,1754713860137,-460.0,0.00023835,2]
[378061596,1754713860146,-460.0,0.00023835,2]
[378061597,1754713860155,-1450.18,0.00023835,2]
[378061598,1754713860164,-460.0,0.00023835,2]
[378061599,1754713860178,-273.46392974,0.00023835,2]
[378061600,1754713860187,-460.0,0.00023835,2]
[378061601,1754713860196,-460.0,0.00023835,2]
[378061602,1754713860212,-460.0,0.00023835,2]
[378061603,1754713860222,-460.0,0.00023835,2]
[378061604,1754713860231,-791.54,0.00023835,2]
[378061605,1754713860242,-460.0,0.00023835,2]
[378061606,1754713860252,-1145.59,0.00023835,2]
[378061607,1754713860262,-1774.2,0.00023835,2]
[378061608,1754713860271,-2001.94,0.00023835,2]
[378061609,1754713860281,-248.20394,0.00023835,7]
[378061610,1754713860291,-248.20393,0.00023835,7]
[378061611,1754713860300,-573.41,0.00023835,2]
[378061612,1754713860310,-460.0,0.00023835,2]
[378061613,1754713860320,-460.0,0.00023835,2]
[378061614,1754713860330,-460.0,0.00023835,2]
[378061615,1754713860339,-460.0,0.00023835,2]
[378061616,1754713860348,-460.0,0.00023835,2]
[378061617,1754713860358,-368.4,0.00023835,2]
[378061618,1754713860367,-548.41,0.00023835,2]
[378061619,1754713860376,-487.8,0.00023835,2]
[378061620,1754713860385,-460.0,0.00023835,2]
[378061621,1754713860395,-1615.05,0.00023835,2]
[378061622,1754713860406,-460.0,0.00023835,2]
[378061623,1754713860415,-460.0,0.00023835,2]
[378061624,1754713860424,-460.0,0.00023835,2]
[378061625,1754713860434,-535.71,0.00023835,2]
[378061626,1754713860444,-460.0,0.00023835,2]
[378061627,1754713860454,-460.0,0.00023835,2]
[378061628,1754713860465,-460.0,0.00023835,2]
[378061629,1754713860474,-460.0,0.00023835,2]
[378061630,1754713860483,-270.554229,0.00023835,7]
[378061631,1754713860492,-460.0,0.00023835,2]
[378061632,1754713860502,-460.0,0.00023835,2]
[378061633,1754713860512,-270.554229,0.00023835,7]
[378061634,1754713860521,-460.0,0.00023835,2]
[378061635,1754713860535,-1082.16,0.00023835,2]
[378061636,1754713860544,-460.0,0.00023835,2]
[378061637,1754713860553,-460.0,0.00023835,2]
[378061638,1754713860562,-968.67,0.00023835,2]
[378061639,1754713860571,-460.0,0.00023835,2]
[378061640,1754713860581,-756.39,0.00023835,2]
[378061641,1754713860590,-844.58,0.00023835,2]
[378061642,1754713860599,-1070.24,0.00023835,2]
[378061643,1754713860609,-486.04,0.00023835,2]
[378061644,1754713860620,-1011.12,0.00023835,2]
[378061645,1754713860630,-460.0,0.00023835,2]
[378061646,1754713860639,-460.0,0.00023835,2]
[378061647,1754713860649,-867.78,0.00023835,2]
[378061648,1754713860658,-1421.98,0.00023835,2]
[378061649,1754713860668,-460.0,0.00023835,2]
[378061650,1754713860678,-574.66,0.00023835,2]
[378061651,1754713860689,-460.0,0.00023835,2]
[378061652,1754713860699,-3037.49,0.00023835,2]
[378061653,1754713860708,-719.99,0.00023835,2]
[378061654,1754713860718,-478.84,0.00023835,2]
[378061655,1754713860728,-497.89,0.00023835,2]
[378061656,1754713860738,-1371.05,0.00023835,2]
[378061657,1754713860747,-4921.9,0.00023835,2]
[378061658,1754713860757,-442.32341299,0.00023835,2]
[378061659,1754713860767,-460.0,0.00023835,2]
[378061660,1754713860777,-460.0,0.00023835,2]
[378061661,1754713860787,-681.73,0.00023835,2]
[378061662,1754713860797,-460.0,0.00023835,2]
[378061663,1754713860806,-1076.66,0.00023835,2]
[378061664,1754713860815,-597.98,0.00023835,2]
[378061665,1754713860825,-531.24570993,0.00023835,2]
[378061666,1754713860834,-460.0,0.00023835,2]
[378061667,1754713860843,-168.0,0.00023898,2]
[378061668,1754713860853,-848.0,0.00023899,3]
[378061669,1754713860862,-151.0,0.000239,7]
[378061670,1754713860872,-150.0,0.00024,2]
[378061671,1754713860882,-366.11,0.00024,14]
[378061672,1754713860892,-16157.0,0.00024,2]
[378061673,1754713860902,-160.0,0.00024,7]
[378061674,1754713860912,-160.0,0.00024,7]
[378061675,1754713860920,-231.92402426,0.00024,7]
[378061676,1754713860930,-842.95011917,0.00024,7]
[378061677,1754713860939,-312.16666667,0.00024,7]
[378061678,1754713860948,-160.0,0.00024,7]
[378061679,1754713860957,-160.0,0.00024,7]
[378061680,1754713860967,-216.61183532,0.00024,7]
[378061681,1754713860977,-168.0,0.00024021,2]
[378061682,1754713860997,-300.0,0.00024032,2]
[378061683,1754713861019,-848.0,0.00024052,3]
[378061684,1754713861028,-168.0,0.00024071,2]
[378061685,1754713861038,-465.16255584,0.00024109,2]
[378061686,1754713861047,-460.0,0.00024109,2]
[378061687,1754713861057,-520.18,0.00024109,2]
[378061688,1754713861066,-151.0,0.00024109,7]
[378061689,1754713861075,-638.99,0.00024109,2]
[378061690,1754713861084,-460.0,0.00024109,2]
[378061691,1754713861093,-460.0,0.00024109,2]
[378061692,1754713861102,-215.92355815,0.00024109,2]
[378061693,1754713861112,-460.0,0.00024109,2]
[378061694,1754713861121,-612.0,0.00024109,2]
[378061695,1754713861130,-151.0,0.00024109,7]
[378061696,1754713861139,-460.0,0.00024109,2]
[378061697,1754713861148,-511.94073108,0.00024109,2]
[378061698,1754713861157,-460.0,0.00024109,2]
[378061699,1754713861167,-460.0,0.00024109,2]
[378061700,1754713861178,-460.0,0.00024109,2]
[378061701,1754713861196,-518.64,0.00024109,2]
[378061702,1754713861205,-460.0,0.00024109,2]
[378061703,1754713861215,-460.0,0.00024109,2]
[378061704,1754713861225,-197.35953287,0.00024109,2]
[378061705,1754713861234,-460.0,0.00024109,2]
[378061706,1754713861243,-460.0,0.00024109,2]
[378061707,1754713861252,-460.0,0.00024109,2]
[378061708,1754713861262,-460.0,0.00024109,2]
[378061709,1754713861272,-335.47093737,0.00024109,2]
[378061710,1754713861281,-480.28,0.00024109,2]
[378061711,1754713861290,-460.0,0.00024109,2]
[378061712,1754713861299,-460.0,0.00024109,2]
[378061713,1754713861308,-151.0,0.00024109,7]
[378061714,1754713861317,-460.0,0.00024109,2]
[378061715,1754713861327,-711.13,0.00024109,2]
[378061716,1754713861336,-460.0,0.00024109,2]
[378061717,1754713861345,-1177.39,0.00024109,2]
[378061718,1754713861354,-460.0,0.00024109,2]
[378061719,1754713861363,-460.0,0.00024109,2]
[378061720,1754713861373,-460.0,0.00024109,2]
[378061721,1754713861382,-1450.18,0.00024109,2]
[378061722,1754713861391,-460.0,0.00024109,2]
[378061723,1754713861400,-460.0,0.00024109,2]
[378061724,1754713861409,-460.0,0.00024109,2]
[378061725,1754713861418,-460.0,0.00024109,2]
[378061726,1754713861428,-460.0,0.00024109,2]
[378061727,1754713861437,-791.54,0.00024109,2]
[378061728,1754713861446,-460.0,0.00024109,2]
[378061729,1754713861456,-1145.59,0.00024109,2]
[378061730,1754713861465,-1774.2,0.00024109,2]
[378061731,1754713861474,-2001.94,0.00024109,2]
[378061732,1754713861485,-573.41,0.00024109,2]
[378061733,1754713861494,-460.0,0.00024109,2]
[378061734,1754713861503,-460.0,0.00024109,2]
[378061735,1754713861512,-460.0,0.00024109,2]
[378061736,1754713861521,-460.0,0.00024109,2]
[378061737,1754713861530,-460.0,0.00024109,2]
[378061738,1754713861540,-548.41,0.00024109,2]
[378061739,1754713861549,-487.8,0.00024109,2]
[378061740,1754713861559,-431.97111399,0.00024109,2]
[378061741,1754713861569,-1615.05,0.00024109,2]
[378061742,1754713861578,-460.0,0.00024109,2]
[378061743,1754713861587,-460.0,0.00024109,2]
[378061744,1754713861597,-460.0,0.00024109,2]
[378061745,1754713861606,-535.71,0.00024109,2]
[378061746,1754713861616,-460.0,0.00024109,2]
[378061747,1754713861626,-460.0,0.00024109,2]
[378061748,1754713861635,-460.0,0.00024109,2]
[378061749,1754713861644,-460.0,0.00024109,2]
[378061750,1754713861653,-270.554229,0.00024109,7]
[378061751,1754713861663,-460.0,0.00024109,2]
[378061752,1754713861673,-460.0,0.00024109,2]
[378061753,1754713861682,-270.554226,0.00024109,7]
[378061754,1754713861692,-460.0,0.00024109,2]
[378061755,1754713861701,-1082.16,0.00024109,2]
[378061756,1754713861710,-460.0,0.00024109,2]
[378061757,1754713861720,-460.0,0.00024109,2]
[378061758,1754713861730,-968.67,0.00024109,2]
[378061759,1754713861739,-564.98193937,0.00024109,2]
[378061760,1754713861748,-756.39,0.00024109,2]
[378061761,1754713861758,-844.58,0.00024109,2]
[378061762,1754713861768,-1070.24,0.00024109,2]
[378061763,1754713861777,-486.04,0.00024109,2]
[378061764,1754713861787,-1011.12,0.00024109,2]
[378061765,1754713861796,-485.50622539,0.00024109,2]
[378061766,1754713861805,-460.0,0.00024109,2]
[378061767,1754713861815,-867.78,0.00024109,2]
[378061768,1754713861824,-1421.98,0.00024109,2]
[378061769,1754713861833,-460.0,0.00024109,2]
[378061770,1754713861843,-574.66,0.00024109,2]
[378061771,1754713861852,-412.39000578,0.00024109,2]
[378061773,1754713949639,639.30347045,0.000199,2]
[378061775,1754714049947,203.67301351,0.00031664,120]
[378061781,1754714160409,617.99335472,0.000199,2]
[378061782,1754714248299,62272.14446714,0.0003,120]
[378061783,1754714370482,621.07134129,0.000199,2]
[378061785,1754714406472,160.118391,0.00013699,2]
[378061788,1754714544761,250.0,0.00021391,2]
[378061789,1754714577183,596.14124389,0.000199,2]
[378061792,1754714605550,-1222.7542,0.00021617,2]
[378061799,1754714785758,313.84957099,0.000199,2]
[378061800,1754714785785,262.42029792,0.000199,2]
[378061803,1754714998355,557.06087327,0.000199,2]
[378061820,1754715032735,-1966.98106677,0.00021617,2]
[378061823,1754715032746,-557.06087318,0.00021655,2]
[378061826,1754715032757,-273.84735415,0.00021915,2]
[378061929,1754715038739,-26.15264585,0.00021915,2]
[378061930,1754715038750,-500.0,0.00021916,2]
[378061931,1754715038761,-500.0,0.00021916,2]
[378061932,1754715038771,-500.0,0.00021916,2]
[378061933,1754715038781,-500.0,0.00021916,2]
[378061934,1754715038791,-500.0,0.00021916,2]
[378061935,1754715038801,-367.68283802,0.00021916,2]
[378061936,1754715038811,-500.0,0.00021916,2]
[378061937,1754715038821,-500.0,0.00021916,2]
[378061938,1754715038831,-500.0,0.00021916,2]
[378061939,1754715038841,-500.0,0.00021916,2]
[378061940,1754715038850,-500.0,0.00021916,2]
[378061941,1754715038861,-500.0,0.00021916,2]
[378061942,1754715038871,-500.0,0.00021916,2]
[378061943,1754715038880,-500.0,0.00021916,2]
[378061944,1754715038890,-500.0,0.00021916,2]
[378061945,1754715038900,-500.0,0.00021916,2]
[378061946,1754715038910,-500.0,0.00021916,2]
[378061947,1754715038920,-500.0,0.00021916,2]
[378061948,1754715038930,-500.0,0.00021916,2]
[378061949,1754715038939,-500.0,0.00021916,2]
[378061950,1754715038949,-460.0,0.00021917,2]
[378061951,1754715038961,-460.0,0.00021917,2]
[378061952,1754715038971,-460.0,0.00021917,2]
[378061953,1754715038980,-460.0,0.00021917,2]
[378061954,1754715038990,-461.9303063,0.00021917,2]
[378061955,1754715038999,-460.0,0.00021917,2]
[378061956,1754715039009,-464.84702017,0.00021917,2]
[378061957,1754715039019,-462.010047,0.00021917,2]
[378061958,1754715039029,-461.73274431,0.00021917,2]
[378061959,1754715039040,-465.93193048,0.00021917,2]
[378061960,1754715039051,-460.0,0.00021917,2]
[378061961,1754715039061,-462.65420998,0.00021917,2]
[378061962,1754715039071,-460.0,0.00021917,2]
[378061963,1754715039082,-460.0,0.00021917,2]
[378061964,1754715039095,-460.0,0.00021917,2]
[378061965,1754715039104,-460.0,0.00021917,2]
[378061966,1754715039114,-460.0,0.00021917,2]
[378061967,1754715039124,-460.0,0.00021917,2]
[378061968,1754715039134,-460.0,0.00021917,2]
[378061969,1754715039144,-376.91741745,0.00021917,2]
[378061970,1754715039154,-592.07444814,0.00021917,2]
[378061971,1754715039163,-460.0,0.00021917,2]
[378061972,1754715039173,-460.0,0.00021917,2]
[378061973,1754715039182,-460.0,0.00021917,2]
[378061974,1754715039192,-460.0,0.00021917,2]
[378061975,1754715039202,-460.50812214,0.00021917,2]
[378061976,1754715039211,-460.0,0.00021917,2]
[378061977,1754715039220,-460.0,0.00021917,2]
[378061978,1754715039229,-461.0330765,0.00021917,2]
[378061979,1754715039239,-460.0,0.00021917,2]
[378061980,1754715039249,-460.0,0.00021917,2]
[378061981,1754715039258,-460.0,0.00021917,2]
[378061982,1754715039268,-460.0,0.00021917,2]
[378061983,1754715039278,-460.0,0.00021917,2]
[378061984,1754715039288,-460.0,0.00021917,2]
[378061985,1754715039299,-460.0,0.00021917,2]
[378061986,1754715039308,-460.0,0.00021917,2]
[378061987,1754715039324,-464.53549341,0.00021917,2]
[378061988,1754715039337,-464.51600047,0.00021917,2]
[378061989,1754715039347,-460.0,0.00021917,2]
[378061990,1754715039356,-475.86284599,0.00021917,2]
[378061991,1754715039366,-460.0,0.00021917,2]
[378061992,1754715039375,-598.31,0.00021917,2]
[378061993,1754715039384,-460.0,0.00021917,2]
[378061994,1754715039394,-460.0,0.00021917,2]
[378061995,1754715039404,-460.0,0.00021917,2]
[378061996,1754715039416,-460.0,0.00021917,2]
[378061997,1754715039432,-460.0,0.00021917,2]
[378061998,1754715039444,-460.0,0.00021917,2]
[378061999,1754715039453,-468.44001497,0.00021917,2]
[378062000,1754715039464,-460.0,0.00021917,2]
[378062001,1754715039473,-462.42586638,0.00021917,2]
[378062002,1754715039483,-460.0,0.00021917,2]
[378062003,1754715039494,-460.0,0.00021917,2]
[378062004,1754715039506,-460.0,0.00021917,2]
[378062005,1754715039517,-488.33045073,0.00021917,2]
[378062006,1754715039528,-461.91658174,0.00021917,2]
[378062007,1754715039538,-460.0,0.00021917,2]
[378062008,1754715039548,-460.0,0.00021917,2]
[378062009,1754715039558,-460.0,0.00021917,2]
[378062010,1754715039571,-460.0,0.00021917,2]
[378062011,1754715039582,-460.0,0.00021917,2]
[378062012,1754715039592,-461.09830458,0.00021917,2]
[378062013,1754715039602,-464.26003249,0.00021917,2]
[378062014,1754715039611,-502.82,0.00021917,2]
[378062015,1754715039622,-460.0,0.00021917,2]
[378062016,1754715039632,-461.64072633,0.00021917,2]
[378062017,1754715039641,-460.0,0.00021917,2]
[378062018,1754715039651,-464.13761423,0.00021917,2]
[378062019,1754715039660,-460.0,0.00021917,2]
[378062020,1754715039670,-463.4673868,0.00021917,2]
[378062021,1754715039679,-460.0,0.00021917,2]
[378062022,1754715039689,-460.0,0.00021917,2]
[378062023,1754715039700,-460.0,0.00021917,2]
[378062024,1754715039710,-460.0,0.00021917,2]
[378062025,1754715039720,-460.0,0.00021917,2]
[378062026,1754715039730,-460.0,0.00021917,2]
[378062027,1754715039739,-460.0,0.00021917,2]
[378062028,1754715039749,-460.0,0.00021917,2]
[378062029,1754715039759,-460.0,0.00021917,2]
[378062030,1754715039771,-460.0,0.00021917,2]
[378062031,1754715039781,-460.0,0.00021917,2]
[378062032,1754715039793,-460.0,0.00021917,2]
[378062033,1754715039804,-357.69619502,0.00021917,2]
[378062034,1754715039813,-460.0,0.00021917,2]
[378062035,1754715039823,-460.0,0.00021917,2]
[378062036,1754715039832,-460.0,0.00021917,2]
[378062037,1754715039841,-413.45359596,0.00021917,2]
[378062038,1754715039850,-460.0,0.00021917,2]
[378062039,1754715039860,-460.74209807,0.00021917,2]
[378062040,1754715039869,-466.80224662,0.00021917,2]
[378062041,1754715039878,-229.41847705,0.00021917,2]
[378062042,1754715039888,-470.40173547,0.00021917,2]
[378062043,1754715039897,-460.0,0.00021917,2]
[378062044,1754715039906,-460.0,0.00021917,2]
[378062045,1754715039916,-469.41947238,0.00021917,2]
[378062046,1754715039926,-460.0,0.00021917,2]
[378062047,1754715039936,-315.51174705,0.00021917,2]
[378062048,1754715039945,-460.0,0.00021917,2]
[378062049,1754715039955,-460.0,0.00021917,2]
[378062050,1754715039964,-460.0,0.00021917,2]
[378062051,1754715039974,-460.0,0.00021917,2]
[378062052,1754715039983,-462.5353697,0.00021917,2]
[378062053,1754715039993,-460.0,0.00021917,2]
[378062054,1754715040002,-460.0,0.00021917,2]
[378062055,1754715040012,-460.0,0.00021917,2]
[378062056,1754715040022,-460.0,0.00021917,2]
[378062057,1754715040032,-460.0,0.00021917,2]
[378062058,1754715040042,-460.0,0.00021917,2]
[378062059,1754715040051,-460.0,0.00021917,2]
[378062060,1754715040061,-464.20703285,0.00021917,2]
[378062061,1754715040071,-460.0,0.00021917,2]
[378062062,1754715040080,-460.0,0.00021917,2]
[378062063,1754715040090,-460.0,0.00021917,2]
[378062064,1754715040100,-460.0,0.00021917,2]
[378062065,1754715040110,-460.0,0.00021917,2]
[378062066,1754715040119,-460.0,0.00021917,2]
[378062067,1754715040129,-471.21157734,0.00021917,2]
[378062068,1754715040139,-460.0,0.00021917,2]
[378062069,1754715040149,-461.74388567,0.00021917,2]
[378062070,1754715040159,-709.58,0.00021917,2]
[378062072,1754715040169,-461.82403352,0.00021917,2]
[378062073,1754715040179,-460.0,0.00021917,2]
[378062075,1754715040188,-464.63929681,0.00021917,2]
[378062076,1754715040198,-460.49966635,0.00021917,2]
[378062077,1754715040208,-543.41,0.00021917,2]